Workbook

Sheet Factor Data (hidden)
A1: Entry Count | B1: 3
A2: Next Available ID | B2: 4
A4: ID | B4: 1
A5: IsActive | B5: TRUE
A6: NodeID | B6: 1 | C6: 2 | D6: 3 | E6: 4 | F6: 9
A7: ArcID | B7: 1 | C7: 2 | D7: 3 | E7: 4 | F7: 5 | G7: 6 | H7: 10
A8: fNodeCopyID | B8: 1
A9: RootNodeID | B9: 9
A10: FactorName | B10: Primary
A11: IsHidden | B11: FALSE
A13: ID | B13: 2
A14: IsActive | B14: TRUE
A15: NodeID | B15: 5
A16: ArcID | B16: 7
A17: fNodeCopyID
A18: RootNodeID | B18: 5
A19: FactorName | B19: Bkd_Mort
A20: IsHidden | B20: FALSE
A22: ID | B22: 3
A23: IsActive | B23: TRUE
A24: NodeID | B24: 6 | C24: 7 | D24: 8
A25: ArcID | B25: 8 | C25: 9
A26: fNodeCopyID
A27: RootNodeID | B27: 6
A28: FactorName | B28: Prosthesis
A29: IsHidden | B29: FALSE

Sheet Node Data (hidden)
A1: Entry Count | B1: 9
A2: Next Available ID | B2: 10
A4: ID | B4: 1
A5: nParentFactorID | B5: 1
A6: NodeCopyID
A7: PredecessorArcID | B7: 10
A8: SuccessorArcID | B8: 6 | C8: 1
A9: QualityFactor | B9: 1
A10: CostFactor | B10: 0
A11: IsKeyNode | B11: FALSE
A12: NodeName | B12: Primary THR
A13: Rounded | B13: TRUE
A14: nTriggerID
A16: ID | B16: 2
A17: nParentFactorID | B17: 1
A18: NodeCopyID
A19: PredecessorArcID | B19: 1
A20: SuccessorArcID | B20: 2
A21: QualityFactor | B21: uSuccessP
A22: CostFactor | B22: 0
A23: IsKeyNode | B23: FALSE
A24: NodeName | B24: Success Primary
A25: Rounded | B25: TRUE
A26: nTriggerID
A28: ID | B28: 3
A29: nParentFactorID | B29: 1
A30: NodeCopyID | B30: 1
A31: PredecessorArcID | B31: 2
A32: SuccessorArcID | B32: 5 | C32: 3
A33: QualityFactor | B33: 1
A34: CostFactor | B34: 0
A35: IsKeyNode | B35: FALSE
A36: NodeName | B36: Revision
A37: Rounded | B37: TRUE
A38: nTriggerID
A40: ID | B40: 4
A41: nParentFactorID | B41: 1
A42: NodeCopyID
A43: PredecessorArcID | B43: 3
A44: SuccessorArcID | B44: 4
A45: QualityFactor | B45: uSuccessR
A46: CostFactor | B46: 0
A47: IsKeyNode | B47: FALSE
A48: NodeName | B48: Success Revision
A49: Rounded | B49: TRUE
A50: nTriggerID
A52: ID | B52: 5
A53: nParentFactorID | B53: 2
A54: NodeCopyID
A55: PredecessorArcID
A56: SuccessorArcID | B56: 7
A57: QualityFactor | B57: 1
A58: CostFactor | B58: 0
A59: IsKeyNode | B59: FALSE
A60: NodeName | B60: Alive
A61: Rounded | B61: TRUE
A62: nTriggerID
A64: ID | B64: 6
A65: nParentFactorID | B65: 3
A66: NodeCopyID
A67: PredecessorArcID
A68: SuccessorArcID | B68: 8 | C68: 9
A69: QualityFactor | B69: 1
A70: CostFactor | B70: 0
A71: IsKeyNode | B71: FALSE
A72: NodeName
A73: Rounded | B73: FALSE
A74: nTriggerID
A76: ID | B76: 7
A77: nParentFactorID | B77: 3
A78: NodeCopyID
A79: PredecessorArcID | B79: 8
A80: SuccessorArcID
A81: QualityFactor | B81: 1
A82: CostFactor | B82: 0
A83: IsKeyNode | B83: FALSE
A84: NodeName | B84: New Prosthesis
A85: Rounded | B85: TRUE
A86: nTriggerID
A88: ID | B88: 8
A89: nParentFactorID | B89: 3
A90: NodeCopyID
A91: PredecessorArcID | B91: 9
A92: SuccessorArcID
A93: QualityFactor | B93: 1
A94: CostFactor | B94: 0
A95: IsKeyNode | B95: FALSE
A96: NodeName | B96: Standard Prosthesis
A97: Rounded | B97: TRUE
A98: nTriggerID
A100: ID | B100: 9
A101: nParentFactorID | B101: 1
A102: NodeCopyID
A103: PredecessorArcID
A104: SuccessorArcID | B104: 10
A105: QualityFactor | B105: 1
A106: CostFactor | B106: 0
A107: IsKeyNode | B107: FALSE
A108: NodeName | B108: Begin
A109: Rounded | B109: TRUE
A110: nTriggerID

Sheet Arc Data (hidden)
A1: Entry Count | B1: 10
A2: Next Available ID | B2: 11
A4: ID | B4: 1
A5: aParentFactorID | B5: 1
A6: Stochastic | B6: FALSE
A7: Orientation | B7: -1.570796371
A8: PredecessorNodeID | B8: 1
A9: SuccessorNodeID | B9: 2
A10: SuccessorNodeCopyID | B10: 0
A11: TriggerID
A12: RateProb | B12: 1-omrPTHR
A13: QualityToll | B13: 0
A14: CostToll | B14: 0
A16: ID | B16: 2
A17: aParentFactorID | B17: 1
A18: Stochastic | B18: TRUE
A19: Orientation | B19: -1.570796371
A20: PredecessorNodeID | B20: 2
A21: SuccessorNodeID | B21: 3
A22: SuccessorNodeCopyID | B22: 0
A23: TriggerID
A24: RateProb | B24: ID 1
A25: QualityToll | B25: tollRevision
A26: CostToll | B26: ID 4
A28: ID | B28: 3
A29: aParentFactorID | B29: 1
A30: Stochastic | B30: FALSE
A31: Orientation | B31: -1.570796371
A32: PredecessorNodeID | B32: 3
A33: SuccessorNodeID | B33: 4
A34: SuccessorNodeCopyID | B34: 0
A35: TriggerID
A36: RateProb | B36: 1-omrRTHR
A37: QualityToll | B37: 0
A38: CostToll | B38: 0
A40: ID | B40: 4
A41: aParentFactorID | B41: 1
A42: Stochastic | B42: TRUE
A43: Orientation | B43: -1.570796371
A44: PredecessorNodeID | B44: 4
A45: SuccessorNodeID | B45: 3
A46: SuccessorNodeCopyID | B46: 1
A47: TriggerID
A48: RateProb | B48: ID 2
A49: QualityToll | B49: tollRevision
A50: CostToll | B50: ID 5
A52: ID | B52: 5
A53: aParentFactorID | B53: 1
A54: Stochastic | B54: FALSE
A55: Orientation | B55: -1.570796371
A56: PredecessorNodeID | B56: 3
A57: SuccessorNodeID | B57: 0
A58: SuccessorNodeCopyID | B58: 0
A59: TriggerID
A60: RateProb | B60: omrRTHR
A61: QualityToll | B61: 0
A62: CostToll | B62: 0
A64: ID | B64: 6
A65: aParentFactorID | B65: 1
A66: Stochastic | B66: FALSE
A67: Orientation | B67: -1.570796371
A68: PredecessorNodeID | B68: 1
A69: SuccessorNodeID | B69: 0
A70: SuccessorNodeCopyID | B70: 0
A71: TriggerID
A72: RateProb | B72: omrPTHR
A73: QualityToll | B73: 0
A74: CostToll | B74: 0
A76: ID | B76: 7
A77: aParentFactorID | B77: 2
A78: Stochastic | B78: TRUE
A79: Orientation | B79: -1.570796371
A80: PredecessorNodeID | B80: 5
A81: SuccessorNodeID | B81: 0
A82: SuccessorNodeCopyID | B82: 0
A83: TriggerID
A84: RateProb | B84: rMortUS(_t+Age,if(male=1,"Male","Female"))
A85: QualityToll | B85: 0
A86: CostToll | B86: 0
A88: ID | B88: 8
A89: aParentFactorID | B89: 3
A90: Stochastic | B90: FALSE
A91: Orientation | B91: 3.141592741
A92: PredecessorNodeID | B92: 6
A93: SuccessorNodeID | B93: 7
A94: SuccessorNodeCopyID | B94: 0
A95: TriggerID
A96: RateProb | B96: New
A97: QualityToll | B97: 0
A98: CostToll | B98: 0
A100: ID | B100: 9
A101: aParentFactorID | B101: 3
A102: Stochastic | B102: FALSE
A103: Orientation | B103: 3.141592741
A104: PredecessorNodeID | B104: 6
A105: SuccessorNodeID | B105: 8
A106: SuccessorNodeCopyID | B106: 0
A107: TriggerID
A108: RateProb | B108: 1-New
A109: QualityToll | B109: 0
A110: CostToll | B110: 0
A112: ID | B112: 10
A113: aParentFactorID | B113: 1
A114: Stochastic | B114: FALSE
A115: Orientation | B115: -1.570796371
A116: PredecessorNodeID | B116: 9
A117: SuccessorNodeID | B117: 1
A118: SuccessorNodeCopyID | B118: 0
A119: TriggerID
A120: RateProb | B120: 1
A121: QualityToll | B121: tollRevision
A122: CostToll | B122: ID 3

Sheet NodeCopy Data (hidden)
A1: Entry Count | B1: 1
A2: Next Available ID | B2: 2
A4: ID | B4: 1
A5: ncParentFactorID | B5: 1
A6: NodeOriginalID | B6: 3
A7: cPredecessorArcID | B7: 4

Sheet Dependency Data (hidden)
A1: Entry Count | B1: 5
A2: Next Available ID | B2: 6
A4: ID | B4: 1
A5: IfFactorID | B5: 3
A6: StateID | B6: 7 | C6: 8
A7: ThenD | B7: rrNP1*WeiHR(_t,Lambda,Gamma) | C7: WeiHR(_t,Lambda,Gamma)
A9: ID | B9: 2
A10: IfFactorID | B10: 3
A11: StateID | B11: 7 | C11: 8
A12: ThenD | B12: rrNP1*rrr | C12: rrr
A14: ID | B14: 3
A15: IfFactorID | B15: 3
A16: StateID | B16: 7 | C16: 8
A17: ThenD | B17: cStandard | C17: cNP1
A19: ID | B19: 4
A20: IfFactorID | B20: 3
A21: StateID | B21: 7 | C21: 8
A22: ThenD | B22: cNP1+cRevision | C22: cStandard+cRevision
A24: ID | B24: 5
A25: IfFactorID | B25: 3
A26: StateID | B26: 7 | C26: 8
A27: ThenD | B27: cNP1 + cRevision | C27: cStandard+cRevision

Sheet Trigger Data (hidden)
A1: Entry Count | B1: 0
A2: Next Available ID | B2: 1

Sheet _Lookup (hidden)
A1: Next Available Dive Index | B1: 8
A2: Begin Table | B2: 5
A3: End Table | B3: 13
A5: Lexicographic Node Index | B5: Dive Index
A6: 5 | B6: 1
A7: 7 | B7: 5
A8: 8 | B8: 6
A9: 9 | B9: 7
A10: 12 | B10: 2
A11: 13 | B11: 3
A12: 14 | B12: 4

Sheet _Cohort
A2: Cycle Time = | B2: 0.1
A3: Start Time = | B3: 0
A4: Time Horizon = | B4: 20
A5: Discount Rate = | B5: =_DiscountRate -> 0.015
D6: Prosthesis: | E6: (no name) | F6: New Prosthesis | G6: New Prosthesis | H6: Standard Prosthesis | I6: Standard Prosthesis | J6: Terminal Node
D7: Primary: | E7: Begin | F7: Success Primary | G7: Success Revision | H7: Success Primary | I7: Success Revision
D8: Bkd_Mort: | E8: Alive | F8: Alive | G8: Alive | H8: Alive | I8: Alive
D9: Chance/Decision? | E9: 1 | F9: 0 | G9: 0 | H9: 0 | I9: 0
D11: Initial Cohort = | E11: 1
D13: Time | E13: Counts
D14: =IF(_R,_tI,IF(_t>_tF,_tNw,D23)) -> 0.9 | E14: =IF(_R,E11,IF(_tNw>=_tF,E14,E23)) -> 0 | F14: =IF(_R,F11,IF(_tNw>=_tF,F14,F23)) -> 0.9738296434 | G14: =IF(_R,G11,IF(_tNw>=_tF,G14,G23)) -> 9.771364343e-05 | H14: =IF(_R,H11,IF(_tNw>=_tF,H14,H23)) -> 0 | I14: =IF(_R,I11,IF(_tNw>=_tF,I14,I23)) -> 0 | J14: =IF(_R,J11,IF(_tNw>=_tF,J14,J23)) -> 0.02607264295 | K14: =(SUMPRODUCT(E9:K9,E14:K14) > 0) -> FALSE
C15: Transition Counts: | D15: (no name) / Begin / Alive
D16: New Prosthesis / Success Primary / Alive | E16: =New*(1-omrPTHR) -> 0.98
D17: New Prosthesis / Success Revision / Alive | F17: =[3]!xPr(rrNP1*[3]!WeiHR(_t,lambda,gamma)*_dT)*(1-omrRTHR) -> 1.654360273e-05 | G17: =[3]!xPr(rrNP1*rrr*_dT)*(1-omrRTHR) -> 0.001021320447
D18: Standard Prosthesis / Success Primary / Alive | E18: =(1-New)*(1-omrPTHR) -> 0
D19: Standard Prosthesis / Success Revision / Alive | H19: =[3]!xPr([3]!WeiHR(_t,lambda,gamma)*_dT)*(1-omrRTHR) -> 6.346252321e-05 | I19: =[3]!xPr(rrr*_dT)*(1-omrRTHR) -> 0.003912170443
D20: Terminal Node | E20: =New*omrPTHR+(1-New)*omrPTHR -> 0.02 | F20: =[3]!xPr(rrNP1*[3]!WeiHR(_t,lambda,gamma)*_dT)*omrRTHR+[3]!xPr([3]!rMortUS(_t+age,IF(male=1,"Male","Female"))*_dT) -> 0.0006905213969 | G20: =[3]!xPr(rrNP1*rrr*_dT)*omrRTHR+[3]!xPr([3]!rMortUS(_t+age,IF(male=1,"Male","Female"))*_dT) -> 0.0007110270468 | H20: =[3]!xPr([3]!WeiHR(_t,lambda,gamma)*_dT)*omrRTHR+[3]!xPr([3]!rMortUS(_t+age,IF(male=1,"Male","Female"))*_dT) -> 0.0006914789259 | I20: =[3]!xPr(rrr*_dT)*omrRTHR+[3]!xPr([3]!rMortUS(_t+age,IF(male=1,"Male","Female"))*_dT) -> 0.0007700239855
D21: Entering Counts | E21: =SUMPRODUCT(_tR,E15:J15) -> 0 | F21: =SUMPRODUCT(_tR,E16:J16) -> 0 | G21: =SUMPRODUCT(_tR,E17:J17) -> 1.621044769e-05 | H21: =SUMPRODUCT(_tR,E18:J18) -> 0 | I21: =SUMPRODUCT(_tR,E19:J19) -> 0 | J21: =SUMPRODUCT(_tR,E20:J20) -> 0.0006725196828
D22: Departing Counts | E22: =IF(_CD=1,E14,E14*SUM(E15:E20)) -> 0 | F22: =IF(_CD=1,F14,F14*SUM(F15:F20)) -> 0.0006885608565 | G22: =IF(_CD=1,G14,G14*SUM(G15:G20)) -> 1.692739853e-07 | H22: =IF(_CD=1,H14,H14*SUM(H15:H20)) -> 0 | I22: =IF(_CD=1,I14,I14*SUM(I15:I20)) -> 0 | J22: =IF(_CD=1,J14,J14*SUM(J15:J20)) -> 0
D23: =IF(_CP,D14,D14+_dT) -> 1 | E23: =E14+E21-E22 -> 0 | F23: =F14+F21-F22 -> 0.9731410825 | G23: =G14+G21-G22 -> 0.0001137548171 | H23: =H14+H21-H22 -> 0 | I23: =I14+I21-I22 -> 0 | J23: =J14+J21-J22 -> 0.02674516263
D25: Quality Coefficients (at t): | F25: =uSuccessP -> 0.85 | G25: =uSuccessR -> 0.75 | H25: =uSuccessP -> 0.85 | I25: =uSuccessR -> 0.75
D26: (at t+dt): | F26: =uSuccessP*EXP(-_dR*_dT) -> 0.8487259558 | G26: =uSuccessR*EXP(-_dR*_dT) -> 0.7488758433 | H26: =uSuccessP*EXP(-_dR*_dT) -> 0.8487259558 | I26: =uSuccessR*EXP(-_dR*_dT) -> 0.7488758433
C28: Transition QALY Tolls: | D28: New Prosthesis / Success Primary / Alive | E28: =New*(1-omrPTHR)*tollRevision -> 0.539
D29: Standard Prosthesis / Success Primary / Alive | E29: =(1-New)*(1-omrPTHR)*tollRevision -> 0
D30: New Prosthesis / Revision / Alive | F30: =[3]!xPr(rrNP1*[3]!WeiHR(_t,lambda,gamma)*_dT)*tollRevision -> 9.284675e-06 | G30: =[3]!xPr(rrNP1*rrr*_dT)*tollRevision -> 0.0005731900465
D31: Standard Prosthesis / Revision / Alive | H31: =[3]!xPr([3]!WeiHR(_t,lambda,gamma)*_dT)*tollRevision -> 3.561672221e-05 | I31: =[3]!xPr(rrr*_dT)*tollRevision -> 0.002195605861
D32: Terminal Node | E32: =New*omrPTHR*tollRevision+(1-New)*omrPTHR*tollRevision -> 0.011 | F32: =0 -> 0 | G32: =0 -> 0 | H32: =0 -> 0 | I32: =0 -> 0
D33: Incremental QALY Tolls: | E33: =IF(_t>_tF,0,_tR*SUM(E28:E32)) -> 0 | F33: =IF(_t>_tF,0,_tR*SUM(F28:F32)) -> 9.041691745e-06 | G33: =IF(_t>_tF,0,_tR*SUM(G28:G32)) -> 5.600848782e-08 | H33: =IF(_t>_tF,0,_tR*SUM(H28:H32)) -> 0 | I33: =IF(_t>_tF,0,_tR*SUM(I28:I32)) -> 0
D34: Incremental QALYs: | E34: =IF(_t>_tF,0,IF(_CP,0,_dT/2*(E25*E14+E26*E23))) -> 0 | F34: =IF(_t>_tF,0,IF(_CP,0,_dT/2*(F25*F14+F26*F23))) -> 0.08268426461 | G34: =IF(_t>_tF,0,IF(_CP,0,_dT/2*(G25*G14+G26*G23))) -> 7.923673359e-06 | H34: =IF(_t>_tF,0,IF(_CP,0,_dT/2*(H25*H14+H26*H23))) -> 0 | I34: =IF(_t>_tF,0,IF(_CP,0,_dT/2*(I25*I14+I26*I23))) -> 0
D35: Incremental Total: | E35: =E34-E33 -> 0 | F35: =F34-F33 -> 0.08267522292 | G35: =G34-G33 -> 7.867664871e-06 | H35: =H34-H33 -> 0 | I35: =I34-I33 -> 0
D36: Cum Discounted QALYs: | E36: =IF(_R,E35,IF(_t>=_tF,E36,E36+E35*EXP(-_dR*_t))) -> -0.55 | F36: =IF(_R,F35,IF(_t>=_tF,F36,F36+F35*EXP(-_dR*_t))) -> 0.8232222239 | G36: =IF(_R,G35,IF(_t>=_tF,G36,G36+G35*EXP(-_dR*_t))) -> 3.442055382e-05 | H36: =IF(_R,H35,IF(_t>=_tF,H36,H36+H35*EXP(-_dR*_t))) -> 0 | I36: =IF(_R,I35,IF(_t>=_tF,I36,I36+I35*EXP(-_dR*_t))) -> 0
D37: Overall Cum QALYs = | E37: =SUM(E36:I36) -> 0.2732566444
D39: Cost Coefficients (at t): | F39: =0 -> 0 | G39: =0 -> 0 | H39: =0 -> 0 | I39: =0 -> 0
D40: (at t+dt): | F40: =0 -> 0 | G40: =0 -> 0 | H40: =0 -> 0 | I40: =0 -> 0
C42: Transition Cost Tolls: | D42: New Prosthesis / Success Primary / Alive | E42: =New*(1-omrPTHR)*cStandard -> 386.12
D43: Standard Prosthesis / Success Primary / Alive | E43: =(1-New)*(1-omrPTHR)*CNP1 -> 0
D44: New Prosthesis / Revision / Alive | F44: =[3]!xPr(rrNP1*[3]!WeiHR(_t,lambda,gamma)*_dT)*(CNP1+cRevision) -> 0.08936921718 | G44: =[3]!xPr(rrNP1*rrr*_dT)*(CNP1 + cRevision) -> 5.517214739
D45: Standard Prosthesis / Revision / Alive | H45: =[3]!xPr([3]!WeiHR(_t,lambda,gamma)*_dT)*(cStandard+cRevision) -> 0.3683416653 | I45: =[3]!xPr(rrr*_dT)*(cStandard+cRevision) -> 22.70655661
D46: Terminal Node | E46: =New*omrPTHR*cStandard+(1-New)*omrPTHR*CNP1 -> 7.88 | F46: =0 -> 0 | G46: =0 -> 0 | H46: =0 -> 0 | I46: =0 -> 0
D47: Incremental Cost Tolls: | E47: =IF(_t>_tF,0,_tR*SUM(E42:E46)) -> 0 | F47: =IF(_t>_tF,0,_tR*SUM(F42:F46)) -> 0.0870303929 | G47: =IF(_t>_tF,0,_tR*SUM(G42:G46)) -> 0.0005391071537 | H47: =IF(_t>_tF,0,_tR*SUM(H42:H46)) -> 0 | I47: =IF(_t>_tF,0,_tR*SUM(I42:I46)) -> 0
D48: Incremental Costs: | E48: =IF(_t>_tF,0,IF(_CP,0,_dT/2*(E39*E14+E40*E23))) -> 0 | F48: =IF(_t>_tF,0,IF(_CP,0,_dT/2*(F39*F14+F40*F23))) -> 0 | G48: =IF(_t>_tF,0,IF(_CP,0,_dT/2*(G39*G14+G40*G23))) -> 0 | H48: =IF(_t>_tF,0,IF(_CP,0,_dT/2*(H39*H14+H40*H23))) -> 0 | I48: =IF(_t>_tF,0,IF(_CP,0,_dT/2*(I39*I14+I40*I23))) -> 0
D49: Incremental Total: | E49: =E48+E47 -> 0 | F49: =F48+F47 -> 0.0870303929 | G49: =G48+G47 -> 0.0005391071537 | H49: =H48+H47 -> 0 | I49: =I48+I47 -> 0
D50: Cum Discounted Costs: | E50: =IF(_R,E49,IF(_t>=_tF,E50,E50+E49*EXP(-_dR*_t))) -> 394 | F50: =IF(_R,F49,IF(_t>=_tF,F50,F50+F49*EXP(-_dR*_t))) -> 0.6106659387 | G50: =IF(_R,G49,IF(_t>=_tF,G50,G50+G49*EXP(-_dR*_t))) -> 0.002240294853 | H50: =IF(_R,H49,IF(_t>=_tF,H50,H50+H49*EXP(-_dR*_t))) -> 0 | I50: =IF(_R,I49,IF(_t>=_tF,I50,I50+I49*EXP(-_dR*_t))) -> 0
D51: Overall Cum Costs = | E51: =SUM(E50:I50) -> 394.6129062

Sheet Parameters
A1: Parameters
B3: 2
A6: Name | B6: Value | C6: Description
A8: age | B8: 60 | C8: Average age of all patients at receipt of primary implant
A9: male | B9: 0 | C9: Gender of patient (0 = Female, 1 = Male)
A11: cDR | B11: 0.06 | C11: Cost discount rate
A12: oDR | B12: 0.015 | C12: Outcome discount rate
A14: Transition probability variables (see diagram on page <Model Figure> for details)
A16: omrPTHR | B16: 0.02 | C16: Operative mortality rate following primary THR
A17: omrRTHR | B17: 0.02 | C17: Operative mortality rate following revision THR
A18: rrr | B18: 0.04 | C18: Re-revision risk (assumed to be constant)
A20: Revision rates for prostheses (see <Hazard function> for details)
A22: cons | B22: ='Hazard function'!C7 -> -5.490935 | C22: Constant in survival analysis for baseline hazard
A23: ageC | B23: ='Hazard function'!C8 -> -0.0367022 | C23: Age coefficient in survival analysis for baseline hazard
A24: maleC | B24: ='Hazard function'!C9 -> 0.768536 | C24: Male coefficient in survival analysis for baseline hazard
A25: lambda | B25: =EXP(cons+ageC*age+maleC*male) -> 0.0004559775418 | C25: Lambda parameter survival analysis (depends on chosen mix of above coefficients)
A26: gamma | B26: =EXP('Hazard function'!C6) -> 1.45367786 | C26: Ancilliary parameter in Weibull distribution
A27: rrNP1 | B27: =EXP('Hazard function'!C10) -> 0.2606767878 | C27: Relative risk of revision for new prosthesis 1 compared to standard
A30: Resource cost parameters
A32: cPrimary | B32: 0 | C32: Cost of a primary THR procedure
A33: cRevision | B33: 5294 | C33: Cost of one cycle in the Revision THR state (national reference costs for revision hip or knee)
A34: cSuccess | B34: 0 | C34: Cost of one cycle in a 'success' state (primary or revision)
A35: cStandard | B35: 394 | C35: Cost of standard prosthesis
A36: cNP1 | B36: 579 | C36: Cost of new prosthesis 1
A39: Utility of Markov states per cycle
A41: uSuccessP | B41: 0.85 | C41: Utility score for having had a successful Primary THR
A42: uSuccessR | B42: 0.75 | C42: Utility score for having a successful Revision THR
A43: uRevision | B43: 0.3 | C43: Utility score during the revision period
A44: tollRevision | B44: =uSuccessP-uRevision -> 0.55 | C44: Quality toll for revision

Sheet Hazard function
A1: Modelling the hazard function for prosthesis failure
B4: explanatory variables | C4: coefficient | D4: se | E4: hazard ratio
B6: lngamma | C6: 0.3740968 | D6: 0.0474501 | E6: =EXP(C6) -> 1.45367786
B7: cons | C7: -5.490935 | D7: 0.207892 | E7: =EXP(C7) -> 0.004123986444
B8: age | C8: -0.0367022 | D8: 0.0052112 | E8: =EXP(C8) -> 0.9639631608
B9: male | C9: 0.768536 | D9: 0.109066 | E9: =EXP(C9) -> 2.156606669
B10: NP1 | C10: -1.344474 | D10: 0.3825815 | E10: =EXP(C10) -> 0.2606767878

Sheet Prosthesis
D3: New = | E3: 1
L4: For age 60 white female
L5: New | M5: QALY | N5: Cost | P5: ICER
L6: =New -> 1 | M6: =_CumQ -> 0.2732566444 | N6: =_CumC -> 394.6129062 | P6: =N9/M9 -> 8444.950903
L7: 1 | M7: 12.14975654 | N7: 430.4809341
L8: 0 | M8: 12.12006709 | N8: 179.7550498
M9: =M7-M8 -> 0.02968944251 | N9: =N7-N8 -> 250.7258843

Sheet Primary

Sheet Bkd_Mort

Sheet Sheet1
